bitfinex-derivatives/quotes_BTCF0:USTF0_20250614
["timestamp","ask_amount","ask_price","bid_price","bid_amount"]
[1749919714856,2.39469264,104600.0,104590.0,0.073]
[1749919715056,2.39469264,104600.0,104590.0,0.07713835]
[1749919715057,2.59861494,104600.0,104590.0,0.07713835]
[1749919715356,2.23776007,104600.0,104590.0,0.07413835]
[1749919715552,2.37403041,104600.0,104590.0,0.07413835]
[1749919715753,1.41375271,104600.0,104590.0,0.07413835]
[1749919715960,1.17763041,104600.0,104590.0,0.07413835]
[1749919716146,0.66875607,104600.0,104590.0,0.50303835]
[1749919716352,0.2441183,104600.0,104590.0,0.70696065]
[1749919716651,1.57138504,104600.0,104590.0,0.53533835]
[1749919716857,0.66250504,104600.0,104590.0,0.73926065]
[1749919718555,0.66250504,104600.0,104590.0,0.53533835]
[1749919718754,0.70412892,104600.0,104590.0,0.53533835]
[1749919719758,0.69810972,104600.0,104590.0,0.53533835]
[1749919721058,0.90203202,104600.0,104590.0,0.53533835]
[1749919722657,0.90203202,104600.0,104590.0,1.39451725]
[1749919722658,0.35112892,104600.0,104590.0,1.39451725]
[1749919722854,0.35112892,104600.0,104590.0,1.20338065]
[1749919723255,0.35112892,104600.0,104590.0,1.14039725]
[1749919723459,0.35112892,104600.0,104590.0,1.39451725]
[1749919723760,0.35112892,104600.0,104590.0,0.99945835]
[1749919724161,0.23274218,104600.0,104590.0,0.99945835]
[1749919724458,0.52546508,104600.0,104590.0,1.04263835]
[1749919724662,0.52546508,104600.0,104590.0,1.29675835]
[1749919725755,0.52546508,104600.0,104590.0,1.00145835]
[1749919727460,0.43666448,104600.0,104590.0,1.00145835]
[1749919727659,0.67112892,104600.0,104590.0,1.00145835]
[1749919727861,0.56274218,104600.0,104590.0,1.00145835]
[1749919728060,0.55505122,104600.0,104590.0,1.00145835]
[1749919728257,0.78666448,104600.0,104590.0,1.00145835]
[1749919728459,0.43666448,104600.0,104590.0,1.00145835]
[1749919728762,0.75666448,104600.0,104590.0,1.00145835]
[1749919728957,0.81666448,104600.0,104590.0,1.00145835]
[1749919729163,0.43666448,104600.0,104590.0,1.00145835]
[1749919729360,0.74666448,104600.0,104590.0,1.00145835]
[1749919729559,0.81666448,104600.0,104590.0,1.00145835]
[1749919729758,0.43666448,104600.0,104590.0,1.00145835]
[1749919729958,0.78666448,104600.0,104590.0,0.71503835]
[1749919730266,0.84376448,104600.0,104590.0,0.96915835]
[1749919730457,1.00659918,104600.0,104590.0,0.96915835]
[1749919730662,0.91776448,104600.0,104590.0,0.96915835]
[1749919730861,1.03615122,104600.0,104590.0,0.96915835]
[1749919731064,1.03599807,104600.0,104590.0,0.96915835]
[1749919731658,1.03599807,104600.0,104590.0,0.71503835]
[1749919732664,1.03599807,104600.0,104590.0,0.67983835]
[1749919733061,2.49576037,104600.0,104590.0,0.06613835]
[1749919733267,2.42737363,104600.0,104590.0,0.06613835]
[1749919733569,2.82000797,104600.0,104590.0,0.00613835]
[1749919733768,2.67193363,104600.0,104590.0,0.00613835]
[1749919734468,2.82000797,104600.0,104590.0,0.00613835]
[1749919734668,2.82100797,104600.0,104590.0,0.00613835]
[1749919735864,2.82200797,104600.0,104590.0,0.00413835]
[1749919736666,2.61808567,104600.0,104590.0,0.00413835]
[1749919737175,2.82200797,104600.0,104590.0,0.00413835]
[1749919739263,2.9662073,104600.0,104590.0,0.00413835]
[1749919739460,0.1911366,104590.0,104580.0,0.00014324]
[1749919739665,1.35816703,104590.0,104580.0,0.34014324]
[1749919740070,1.23972963,104590.0,104580.0,0.34014324]
[1749919740372,1.33780397,104590.0,104580.0,0.00014324]
[1749919740570,1.33780397,104590.0,104580.0,0.00114324]
[1749919742274,1.13388167,104590.0,104580.0,0.00114324]
[1749919742469,1.18972963,104590.0,104580.0,0.00114324]
[1749919742773,1.33780397,104590.0,104580.0,0.00114324]
[1749919743570,2.16424397,104590.0,104580.0,0.00114324]
[1749919743777,2.22279437,104590.0,104580.0,0.00114324]
[1749919743970,2.22279437,104590.0,104580.0,0.0143217]
[1749919744472,2.22279437,104590.0,104580.0,0.01432166]
[1749919744775,2.36554366,104590.0,104580.0,0.0143217]
[1749919745074,2.51341823,104590.0,104580.0,0.0143217]
[1749919745376,2.35679349,104590.0,104580.0,0.0143217]
[1749919745770,2.15287119,104590.0,104580.0,0.0143217]
[1749919746075,2.35679349,104590.0,104580.0,0.0143217]
[1749919746872,2.35679349,104590.0,104580.0,0.01439263]
[1749919747777,2.35641257,104590.0,104580.0,0.01439263]
[1749919747973,2.35641257,104590.0,104580.0,0.01438048]
[1749919748975,3.12769257,104590.0,104580.0,0.01438048]
[1749919749272,1.99561257,104590.0,104580.0,0.00114324]
[1749919749478,3.48793257,104590.0,104580.0,0.00114324]
[1749919749668,3.12713257,104590.0,104580.0,0.01433604]
[1749919749872,3.12713257,104590.0,104580.0,0.00114324]
[1749919750376,3.48793257,104590.0,104580.0,0.01434176]
[1749919750875,3.46335661,104590.0,104580.0,0.01434176]
[1749919752073,3.46335661,104590.0,104580.0,0.01435364]
[1749919752275,3.31548204,104590.0,104580.0,0.01435055]
[1749919752472,3.46996144,104590.0,104550.0,0.74848949]
[1749919752680,0.90364691,104560.0,104550.0,0.4063]
[1749919752980,1.10016727,104560.0,104550.0,0.4063]
[1749919753180,1.22305391,104560.0,104550.0,0.4063]
[1749919753393,2.01986351,104560.0,104550.0,0.7671]
[1749919753578,2.10846713,104560.0,104550.0,0.8083]
[1749919753784,0.94130713,104560.0,104550.0,0.8153]
[1749919754080,0.7265182,104560.0,104550.0,1.0065096]
[1749919754273,0.9304405,104560.0,104550.0,0.8093]
[1749919754472,0.6004405,104560.0,104550.0,0.8043]
[1749919755172,0.6187241,104560.0,104550.0,0.8043]
[1749919755778,0.6187241,104560.0,104550.0,0.8053]
[1749919756081,0.9487241,104560.0,104550.0,0.8073]
[1749919756381,0.38527086,104560.0,104550.0,0.8053]
[1749919756778,0.36698726,104560.0,104550.0,1.200432]
[1749919756977,0.36698726,104560.0,104550.0,1.198432]
[1749919757178,0.36698726,104560.0,104550.0,1.839372]
[1749919757476,0.30791458,104560.0,104550.0,1.839372]
[1749919757882,0.30791458,104560.0,104550.0,1.44424]
[1749919758185,0.30791458,104560.0,104550.0,1.6354497]
[1749919758385,0.32565067,104560.0,104550.0,1.44424]
[1749919758579,0.58864565,104560.0,104550.0,1.34392]
[1749919758776,0.58864565,104560.0,104550.0,1.34805835]
[1749919758981,0.58864565,104560.0,104550.0,1.10273835]
[1749919759181,0.67724927,104560.0,104550.0,1.10673835]
[1749919759686,0.67724927,104560.0,104550.0,1.1026]
[1749919759985,1.04724927,104560.0,104550.0,1.1026]
[1749919760177,0.99724927,104560.0,104550.0,1.1026]
[1749919760373,0.47332697,104560.0,104550.0,1.1026]
[1749919760787,0.47332697,104560.0,104550.0,1.10673835]
[1749919761180,0.47332697,104560.0,104550.0,1.39358805]
[1749919761381,0.36698726,104560.0,104550.0,1.59751035]
[1749919762085,0.36698726,104560.0,104550.0,2.48031035]
[1749919764186,0.36698726,104560.0,104550.0,2.38467035]
[1749919764585,0.36698726,104560.0,104550.0,1.10673835]
[1749919764778,0.65951318,104560.0,104550.0,1.11578697]
[1749919764979,0.9304405,104560.0,104550.0,1.35262697]
[1749919765179,0.9304405,104560.0,104550.0,1.11578697]
[1749919765180,0.9687405,104560.0,104550.0,1.11578697]
[1749919765486,0.9687405,104560.0,104550.0,1.11596317]
[1749919765681,0.9687405,104560.0,104550.0,1.11595457]
[1749919765886,1.0055405,104560.0,104550.0,1.11595457]
[1749919766088,1.0055405,104560.0,104550.0,1.11395921]
[1749919766288,1.0055405,104560.0,104550.0,1.11195317]
[1749919766492,0.6755405,104560.0,104550.0,1.11195317]
[1749919767780,0.6755405,104560.0,104550.0,1.0986]
[1749919769292,0.6387405,104560.0,104550.0,1.2898097]
[1749919769589,0.2053268,104560.0,104550.0,1.493732]
[1749919769880,0.45574362,104560.0,104550.0,1.29394805]
[1749919770383,0.26455222,104560.0,104550.0,1.29394805]
[1749919770588,0.46847452,104560.0,104550.0,2.41130805]
[1749919770887,0.1759486,104560.0,104550.0,2.4071697]
[1749919771385,0.1759486,104560.0,104550.0,2.4091697]
[1749919771587,0.17606364,104560.0,104550.0,2.4111697]
[1749919771782,0.26466726,104560.0,104550.0,2.4111697]
[1749919771991,0.17606364,104560.0,104550.0,2.4111697]
[1749919772286,0.22346241,104560.0,104550.0,2.4111697]
[1749919772493,0.45585866,104560.0,104550.0,2.4111697]
[1749919773191,0.26466726,104560.0,104550.0,2.4111697]
[1749919773494,0.45585866,104560.0,104550.0,2.4111697]
[1749919774187,0.39663324,104560.0,104550.0,2.4111697]
[1749919775198,0.20544184,104560.0,104550.0,2.4111697]
[1749919779596,0.39663324,104560.0,104550.0,2.4111697]
[1749919779796,0.20544184,104560.0,104550.0,2.4111697]
[1749919780197,0.39663344,104560.0,104550.0,2.4111697]
[1749919782106,0.24364184,104560.0,104550.0,2.4111697]
[1749919782403,0.43483344,104560.0,104550.0,2.4111697]
[1749919782703,0.4644215,104560.0,104550.0,2.4111697]
[1749919783204,0.6683438,104560.0,104550.0,2.4097297]
[1749919783401,0.7054438,104560.0,104550.0,2.4097297]
[1749919783604,0.5015215,104560.0,104550.0,2.4097297]
[1749919784903,0.5015215,104560.0,104550.0,2.4090897]
[1749919786302,0.5015215,104560.0,104550.0,2.18168]
[1749919786508,0.7054438,104560.0,104550.0,2.3728895]
[1749919786704,0.7451438,104560.0,104550.0,2.3728895]
[1749919788612,0.62695212,104560.0,104550.0,2.3728895]
[1749919788805,0.7451438,104560.0,104550.0,1.0664]
[1749919788999,0.7451438,104560.0,104550.0,2.14358]
[1749919789406,0.5412215,104560.0,104550.0,2.14358]
[1749919789606,0.7451438,104560.0,104550.0,2.3347896]
[1749919790098,0.7451438,104560.0,104550.0,2.14158]
[1749919790606,0.3500299,104560.0,104550.0,2.3327896]
[1749919791105,0.5539522,104560.0,104550.0,2.3327896]
[1749919791300,0.5539522,104560.0,104550.0,2.3307896]
[1749919791499,0.3500299,104560.0,104550.0,1.0261]
[1749919791701,0.5539522,104560.0,104550.0,1.0261]
[1749919792008,0.5539522,104560.0,104550.0,1.2173096]
[1749919792608,1.1051435,104560.0,104550.0,1.0261]
[1749919792804,1.00695182,104560.0,104550.0,1.0261]
[1749919793011,0.95695182,104560.0,104550.0,1.0261]
[1749919793208,0.95695182,104560.0,104550.0,1.91254]
[1749919793712,0.95695182,104560.0,104550.0,1.75254]
[1749919793915,0.95695182,104560.0,104550.0,1.75194]
[1749919794412,0.62695182,104560.0,104550.0,1.75194]
[1749919795817,0.63695182,104560.0,104550.0,1.54194]
[1749919796214,0.43302952,104560.0,104550.0,1.54194]
[1749919796424,0.63695182,104560.0,104550.0,1.54194]
[1749919796614,0.43302952,104560.0,104550.0,0.6561]
[1749919796916,0.95695182,104560.0,104550.0,0.6561]
[1749919797107,0.64695182,104560.0,104550.0,0.6561]
[1749919797307,0.99695182,104560.0,104550.0,0.6561]
[1749919797712,0.62695182,104560.0,104550.0,0.6561]
[1749919798214,0.98695182,104560.0,104550.0,0.6561]
[1749919798512,0.95695182,104560.0,104550.0,0.3608]
[1749919799114,0.43302952,104560.0,104550.0,0.3608]
[1749919799311,1.0851435,104560.0,104550.0,0.3608]
[1749919799915,0.7651435,104560.0,104550.0,0.3608]
[1749919800115,0.7254435,104560.0,104550.0,0.4005]
[1749919800306,0.3303299,104560.0,104550.0,0.6310097]
[1749919800505,0.5215213,104560.0,104540.0,0.58222218]
[1749919800708,0.09536,104540.0,104490.0,0.20781818]
[1749919800908,0.4586256,104500.0,104480.0,0.1194599]
[1749919801113,0.08885561,104490.0,104480.0,1.0895565]
[1749919801304,0.57019653,104490.0,104480.0,1.3758965]
[1749919801505,0.38395758,104490.0,104480.0,1.1274565]
[1749919801711,0.38395758,104490.0,104480.0,2.4712743]
[1749919801712,0.13003528,104490.0,104480.0,2.4712743]
[1749919801916,0.3041853,104490.0,104480.0,2.47117186]
[1749919802213,0.19450865,104490.0,104480.0,1.5536178]
[1749919802413,0.11901817,104490.0,104480.0,2.22750202]
[1749919802605,0.04120485,104490.0,104480.0,2.9463029]
[1749919802806,0.03720481,104490.0,104480.0,2.9483029]
[1749919803006,0.00014324,104500.0,104490.0,0.1913194]
[1749919803211,0.00014324,104500.0,104490.0,1.00194927]
[1749919803415,0.00014324,104500.0,104490.0,1.88992904]
[1749919803711,0.00014324,104500.0,104490.0,1.90992904]
[1749919803919,0.00014324,104500.0,104490.0,1.88992904]
[1749919804220,0.20406554,104500.0,104490.0,0.64183304]
[1749919804416,0.75616664,104500.0,104490.0,0.08971364]
[1749919804620,0.55224434,104500.0,104490.0,2.26013578]
[1749919804820,0.75616664,104500.0,104490.0,2.26013578]
[1749919805016,0.43624986,104500.0,104490.0,1.14773578]
[1749919805314,0.43624986,104500.0,104490.0,1.10773578]
[1749919805620,0.43624986,104500.0,104490.0,2.27241578]
[1749919805809,0.00014324,104500.0,104490.0,3.1696778]
[1749919806015,0.41985815,104530.0,104520.0,0.1912645]
[1749919806219,0.81502665,104530.0,104520.0,2.1822245]
[1749919806519,0.62798503,104540.0,104530.0,0.1912462]
[1749919806708,0.53675713,104540.0,104530.0,0.2288462]
[1749919806913,0.3608,104540.0,104530.0,0.4327685]
[1749919807112,0.3608,104540.0,104530.0,1.5964485]
[1749919807409,0.3608,104540.0,104530.0,1.4625262]
[1749919807607,0.61121719,104550.0,104540.0,0.1912283]
[1749919807813,0.61121149,104550.0,104540.0,0.2288283]
[1749919808113,0.55215334,104550.0,104540.0,0.2680283]
[1749919808519,0.36094324,104550.0,104540.0,0.2680283]
[1749919808719,0.3770848,104550.0,104540.0,0.2680283]
[1749919809115,0.3770848,104550.0,104540.0,0.3049283]
[1749919809427,0.36094324,104550.0,104540.0,0.3049283]
[1749919810515,0.36094324,104550.0,104540.0,1.4658083]
[1749919811016,0.36094324,104550.0,104540.0,1.4698083]
[1749919811521,0.36094324,104550.0,104540.0,1.4689283]
[1749919812716,0.42000139,104550.0,104540.0,1.4689283]
[1749919813314,0.42000139,104550.0,104540.0,0.3089283]
[1749919813509,0.42000139,104550.0,104540.0,1.4676883]
[1749919815117,0.4631562,104550.0,104540.0,1.4676883]
[1749919816220,0.1023562,104550.0,104540.0,1.4676883]
[1749919817022,0.1023562,104550.0,104540.0,0.3089283]
[1749919817227,0.1023562,104550.0,104540.0,1.4639283]
[1749919817726,0.1023562,104550.0,104540.0,0.3089283]
[1749919817922,0.1023562,104550.0,104540.0,1.4654083]
[1749919818322,0.1023562,104550.0,104540.0,0.87918019]
[1749919818521,0.1023562,104550.0,104540.0,2.03498019]
[1749919818923,0.1023562,104550.0,104540.0,2.05498019]
[1749919819223,0.1023562,104550.0,104540.0,2.28498019]
[1749919819730,0.1023562,104550.0,104540.0,2.03498019]
[1749919820129,0.04329805,104550.0,104540.0,2.33498019]
[1749919820525,0.04329805,104550.0,104540.0,2.43063618]
[1749919820730,0.04329805,104550.0,104540.0,2.43477453]
[1749919821918,0.04329805,104550.0,104540.0,1.27897453]
[1749919822124,0.04329805,104550.0,104540.0,2.12674665]
[1749919822624,0.04329805,104550.0,104540.0,0.97386665]
[1749919822827,0.04329805,104550.0,104540.0,2.12574665]
[1749919823531,0.04329805,104550.0,104540.0,2.12542665]
[1749919824026,0.04329805,104550.0,104540.0,2.43053453]
[1749919824627,0.04329805,104550.0,104540.0,2.68053453]
[1749919825028,0.00014324,104550.0,104540.0,2.68053453]
[1749919825929,0.00014324,104550.0,104540.0,1.52741453]
[1749919826129,0.00014324,104550.0,104540.0,0.97386665]
[1749919826435,0.00014324,104550.0,104540.0,2.33383854]
[1749919826734,0.04328743,104550.0,104540.0,2.33383854]
[1749919827335,0.3608,104560.0,104550.0,0.1912107]
[1749919827530,0.3608,104560.0,104550.0,1.4786507]
[1749919827730,0.5519924,104560.0,104550.0,1.4786507]
[1749919827930,0.3608,104560.0,104550.0,1.4786507]
[1749919830435,0.3608,104560.0,104550.0,1.4806507]
[1749919830636,0.18270139,104570.0,104560.0,0.1911925]
[1749919830834,0.18270139,104570.0,104560.0,1.43669259]
[1749919831026,0.54350139,104570.0,104560.0,1.43669259]
[1749919831226,0.54350139,104570.0,104560.0,1.64084004]
[1749919831538,0.54350139,104570.0,104560.0,1.39659259]
[1749919831741,0.54350139,104570.0,104560.0,0.24835259]
[1749919832128,0.54350139,104570.0,104560.0,1.35751259]
[1749919832641,0.57327367,104570.0,104560.0,0.20995259]
[1749919832835,0.57327367,104570.0,104560.0,1.35747259]
[1749919833140,0.57327367,104570.0,104560.0,0.20995259]
[1749919833442,0.57327367,104570.0,104560.0,1.35667259]
[1749919833642,0.57327367,104570.0,104560.0,1.56082004]
[1749919834337,0.57327367,104570.0,104560.0,0.41410004]
[1749919834536,0.60263492,104570.0,104560.0,1.56026004]
[1749919834832,0.60263492,104570.0,104560.0,1.55930004]
[1749919835637,0.60263492,104570.0,104560.0,0.41410004]
[1749919835840,0.60263492,104570.0,104560.0,1.56275839]
[1749919837444,0.60263492,104570.0,104560.0,1.56195839]
[1749919838542,0.60263492,104570.0,104560.0,1.35781094]
[1749919838741,0.60263492,104570.0,104560.0,1.56195839]
[1749919839349,0.64592892,104570.0,104560.0,1.56195839]
[1749919839650,0.64592892,104570.0,104560.0,1.5431983]
[1749919839945,0.83710322,104570.0,104560.0,1.5431983]
[1749919840147,0.28512892,104570.0,104560.0,1.5431983]
[1749919840345,0.16162892,104570.0,104560.0,2.53994575]
[1749919840544,0.16162892,104570.0,104560.0,2.57894575]
[1749919840746,0.13229514,104570.0,104560.0,2.57894575]
[1749919841047,0.13229514,104570.0,104560.0,2.3733183]
[1749919841244,0.13229514,104570.0,104560.0,1.6621183]
[1749919841446,0.13229514,104570.0,104560.0,2.0121183]
[1749919841746,0.13229514,104570.0,104560.0,2.0141183]
[1749919842645,0.1915145,104570.0,104560.0,2.0161183]
[1749919843049,0.1915145,104570.0,104560.0,2.3769183]
[1749919843237,0.1026566,104570.0,104560.0,2.3769183]
[1749919843436,0.04343724,104570.0,104560.0,1.2350783]
[1749919843949,0.04343724,104570.0,104560.0,2.3747983]
[1749919844341,4e-08,104570.0,104560.0,2.67457775]
[1749919845147,4e-08,104570.0,104560.0,2.69070053]
[1749919845449,4e-08,104570.0,104560.0,2.67457775]
[1749919846545,4e-08,104570.0,104560.0,1.3307103]
[1749919847046,4e-08,104570.0,104560.0,2.4681903]
[1749919847644,4e-08,104570.0,104560.0,2.4682303]
[1749919848645,0.17472012,104590.0,104580.0,0.1911575]
[1749919848847,0.11555954,104590.0,104580.0,2.4845575]
[1749919849849,0.11655954,104590.0,104580.0,2.4845575]
[1749919850254,0.11855954,104590.0,104580.0,2.4845575]
[1749919851255,0.11655954,104590.0,104580.0,2.4845575]
[1749919851450,0.11655954,104590.0,104580.0,1.1623975]
[1749919851752,0.11655954,104590.0,104580.0,2.5258775]
[1749919851941,0.11555954,104590.0,104580.0,2.5258775]
[1749919852748,0.11555954,104590.0,104580.0,1.3923975]
[1749919852954,0.47635954,104590.0,104580.0,2.2005975]
[1749919853157,0.47635954,104590.0,104580.0,2.5725975]
[1749919855356,0.11555954,104590.0,104580.0,2.5725975]
[1749919855546,0.11555954,104590.0,104580.0,2.6150975]
[1749919855851,0.099323,104590.0,104580.0,2.6150975]
[1749919856453,0.0804,104590.0,104580.0,2.81924495]
[1749919857653,0.0804,104590.0,104580.0,2.6150975]
[1749919858148,0.09007486,104590.0,104580.0,2.6150975]
[1749919858453,0.09007486,104590.0,104580.0,2.81924495]
[1749919858756,0.09007486,104590.0,104580.0,2.6150975]
[1749919858948,0.0804,104590.0,104580.0,2.6150975]
[1749919859148,0.2715392,104590.0,104580.0,2.6150975]
[1749919859546,0.0804,104590.0,104580.0,2.6150975]
[1749919860258,0.2715392,104590.0,104580.0,2.6150975]
[1749919860645,0.31253661,104590.0,104580.0,2.6150975]
[1749919860842,1.23748406,104590.0,104580.0,0.004]
[1749919861047,1.28068406,104590.0,104580.0,0.83036]
[1749919861351,1.33068406,104590.0,104580.0,1.95048]
[1749919861554,1.44887574,104590.0,104580.0,1.9504]
[1749919861749,1.09850136,104590.0,104580.0,1.95096]
[1749919861943,1.46850136,104590.0,104580.0,0.002]
[1749919862143,1.81424548,104590.0,104580.0,0.002]
[1749919862352,1.81424548,104590.0,104580.0,0.24092]
[1749919862353,1.79592568,104590.0,104580.0,0.24092]
[1749919862547,1.59177823,104590.0,104580.0,0.24092]
[1749919862753,1.75592568,104590.0,104580.0,0.24092]
[1749919863255,1.75592568,104590.0,104580.0,0.23892]
[1749919863553,1.80592568,104590.0,104580.0,0.23892]
[1749919863852,1.77592568,104590.0,104580.0,0.23892]
[1749919864043,0.095583,104580.0,104560.0,1.16187515]
[1749919864248,0.7898031,104580.0,104570.0,1.12108]
[1749919864449,0.04099741,104580.0,104570.0,1.3122557]
[1749919864649,0.04099741,104580.0,104570.0,1.96650315]
[1749919864951,0.12795046,104590.0,104580.0,0.1911574]
[1749919865151,0.12795046,104590.0,104580.0,1.1057974]
[1749919865348,0.31908966,104590.0,104580.0,1.10993575]
[1749919865544,0.24177114,104590.0,104580.0,1.10993575]
[1749919865851,0.60257114,104590.0,104580.0,1.10993575]
[1749919866449,0.72089598,104590.0,104580.0,1.10993575]
[1749919866647,0.72089598,104590.0,104580.0,0.19529575]
[1749919866845,0.1912585,104530.0,104470.0,0.3856644]
[1749919867045,0.93085338,104480.0,104470.0,0.64004502]
[1749919867245,0.7716,104480.0,104470.0,0.75927584]
[1749919867449,0.7716,104480.0,104470.0,0.64004502]
[1749919867450,0.7216,104480.0,104470.0,0.64004502]
[1749919867656,0.7216,104480.0,104470.0,0.99823584]
[1749919867657,0.76281854,104480.0,104470.0,0.99823584]
[1749919867855,0.76281854,104480.0,104470.0,1.08753584]
[1749919868153,0.95415764,104480.0,104470.0,1.08753584]
[1749919868353,0.76281854,104480.0,104470.0,1.29678922]
[1749919868548,0.95415764,104480.0,104470.0,2.02811584]
[1749919868752,0.95415764,104480.0,104470.0,1.13303584]
[1749919869150,0.95415764,104480.0,104470.0,1.13503584]
[1749919869449,0.95415764,104480.0,104470.0,2.02955584]
[1749919869860,0.95415764,104480.0,104470.0,1.13703584]
[1749919871457,0.95415764,104480.0,104470.0,2.1075962]
[1749919872249,0.95415764,104480.0,104470.0,1.2142762]
[1749919872453,0.95415764,104480.0,104470.0,2.1078362]
[1749919872853,0.95415764,104480.0,104470.0,2.1073962]
[1749919873062,0.95415764,104480.0,104470.0,1.2142762]
[1749919873462,0.95415764,104480.0,104470.0,2.1069562]
[1749919874061,0.95415764,104480.0,104470.0,2.02963584]
[1749919875162,0.76281854,104480.0,104470.0,2.43024662]
[1749919875457,0.95415764,104480.0,104470.0,1.13703584]
[1749919875663,0.95415764,104480.0,104470.0,2.22207324]
[1749919876256,0.95415764,104480.0,104470.0,2.03131584]
[1749919876655,0.95415764,104480.0,104470.0,2.03079584]
[1749919876850,0.95415764,104480.0,104470.0,0.89807584]
[1749919877055,1.16341102,104480.0,104470.0,0.89807584]
[1749919877257,1.16341102,104480.0,104470.0,0.77884502]
[1749919877456,1.16341102,104480.0,104470.0,2.33266]
[1749919877663,1.16341102,104480.0,104470.0,0.1225]
[1749919877859,1.43451102,104480.0,104470.0,2.08162]
[1749919878060,1.16451102,104480.0,104470.0,2.71166502]
[1749919878264,0.95415764,104480.0,104470.0,2.71166502]
[1749919878457,0.55083949,104480.0,104470.0,3.02225324]
[1749919878656,0.55083949,104480.0,104470.0,3.02165324]
[1749919878854,0.74217849,104480.0,104470.0,2.83001584]
[1749919879060,0.74217849,104480.0,104470.0,1.69865584]
[1749919879271,0.74217849,104480.0,104470.0,2.83013584]
[1749919879566,0.74217849,104480.0,104470.0,2.71476337]
[1749919879760,0.55083949,104480.0,104470.0,3.02535159]
[1749919879963,0.55083949,104480.0,104470.0,3.02335159]
[1749919880158,0.55083949,104480.0,104470.0,3.02135159]
[1749919880965,0.74369872,104480.0,104470.0,3.27280497]
[1749919881267,0.93503772,104480.0,104470.0,3.06355159]
[1749919882160,0.93503772,104480.0,104470.0,1.74099419]
[1749919882364,0.93503772,104480.0,104470.0,2.87295419]
[1749919882762,0.93503772,104480.0,104470.0,3.06531159]
[1749919883162,0.93503772,104480.0,104470.0,2.87595419]
[1749919883369,0.93503772,104480.0,104470.0,2.87495419]
[1749919883769,0.93503772,104480.0,104470.0,3.08280757]
[1749919884171,0.93503772,104480.0,104470.0,3.27416497]
[1749919884369,0.99347913,104480.0,104470.0,3.06491159]
[1749919884674,0.93503772,104480.0,104470.0,3.27416497]
[1749919884871,0.74369872,104480.0,104470.0,3.27320497]
[1749919885172,0.93503772,104480.0,104470.0,3.27320497]
[1749919885365,0.93503772,104480.0,104470.0,2.14160497]
[1749919885570,0.93503772,104480.0,104470.0,3.27328497]
[1749919886263,0.93503772,104480.0,104470.0,3.27528497]
[1749919886471,0.93503772,104480.0,104470.0,3.27628497]
[1749919887862,0.93503772,104480.0,104470.0,3.27828497]
[1749919888474,0.99347913,104480.0,104470.0,3.27828497]
[1749919888676,0.99347913,104480.0,104470.0,2.14660497]
[1749919888870,0.99347913,104480.0,104470.0,3.27744497]
[1749919889072,0.80214013,104480.0,104470.0,3.27744497]
[1749919889473,0.89053628,104480.0,104470.0,3.27544497]
[1749919890269,0.52973628,104480.0,104470.0,3.27544497]
[1749919890972,0.52973628,104480.0,104470.0,3.27444497]
[1749919891171,0.52973628,104480.0,104470.0,3.27744497]
[1749919891575,0.44134013,104480.0,104470.0,3.27744497]
[1749919891875,0.25281444,104480.0,104470.0,3.27744497]
[1749919892464,0.37764446,104490.0,104480.0,0.1913396]
[1749919892672,0.46578842,104490.0,104480.0,1.37286882]
[1749919893073,0.39578842,104490.0,104480.0,1.37286882]
[1749919893276,0.41272428,104490.0,104480.0,1.37286882]
[1749919893476,0.39578842,104490.0,104480.0,1.37286882]
[1749919893676,0.39578842,104490.0,104480.0,1.37386882]
[1749919894177,0.39578842,104490.0,104480.0,1.37486882]
[1749919894376,0.30764446,104490.0,104480.0,1.37486882]
[1749919895476,0.37058747,104500.0,104490.0,0.1913213]
[1749919895773,0.36094324,104500.0,104490.0,2.17485714]
[1749919895978,0.36094324,104500.0,104490.0,2.38411052]
[1749919896773,0.55324624,104500.0,104490.0,2.38411052]
[1749919896979,0.37279544,104500.0,104490.0,2.38411052]
[1749919897181,0.36294324,104500.0,104490.0,2.38411052]
[1749919897380,0.55424624,104500.0,104490.0,2.17521714]
[1749919897578,0.55424624,104500.0,104490.0,2.38447052]
[1749919897778,0.55324624,104500.0,104490.0,2.38447052]
[1749919897979,0.55324624,104500.0,104490.0,3.21255052]
[1749919898370,0.36194324,104500.0,104490.0,3.21255052]
[1749919898777,0.36094324,104500.0,104490.0,3.21255052]
[1749919899081,0.36094324,104500.0,104490.0,3.21355052]
[1749919900282,0.00014324,104500.0,104490.0,3.57435052]
[1749919900672,0.3608,104510.0,104500.0,0.191303]
[1749919900877,0.36042251,104510.0,104500.0,1.63392128]
[1749919901381,0.3608,104520.0,104510.0,0.1912847]
[1749919901574,0.3808,104520.0,104510.0,3.22307392]
[1749919902685,0.02,104520.0,104510.0,3.22307392]
[1749919903086,0.02,104520.0,104510.0,3.22507392]
[1749919903682,0.023,104520.0,104510.0,3.22507392]
[1749919903878,0.023,104520.0,104510.0,2.09435392]
[1749919904083,0.3808,104520.0,104510.0,2.67342054]
[1749919904279,0.3808,104520.0,104510.0,3.05642054]
[1749919904887,0.3808,104520.0,104510.0,3.26567392]
[1749919906476,0.02,104520.0,104510.0,3.62647392]
[1749919907178,0.02,104520.0,104510.0,3.41722054]
[1749919907578,0.02,104520.0,104510.0,3.62647392]
[1749919908382,0.02,104520.0,104510.0,2.49815392]
[1749919908577,0.39744418,104520.0,104510.0,2.13735392]
[1749919908781,0.39744191,104520.0,104510.0,3.26335392]
[1749919909081,0.39744191,104520.0,104510.0,2.13735392]
[1749919909286,0.03664191,104520.0,104510.0,3.26299392]
[1749919910388,0.39744191,104520.0,104510.0,3.26299392]
[1749919910583,0.39744191,104520.0,104510.0,3.05374054]
[1749919910781,0.39744191,104520.0,104510.0,3.26299392]
[1749919910981,0.39744191,104520.0,104510.0,3.26713227]
[1749919911382,1e-08,104520.0,104510.0,3.62793227]
[1749919911583,0.00014324,104530.0,104520.0,0.1912662]
[1749919911882,0.23,104530.0,104520.0,1.24680298]
[1749919912084,0.23,104530.0,104520.0,2.2903938]
[1749919912787,0.23,104530.0,104520.0,2.2923938]
[1749919913694,0.39390403,104530.0,104520.0,2.5654707]
[1749919913893,0.39390403,104530.0,104520.0,2.5704707]
[1749919914588,0.39390403,104530.0,104520.0,2.64809744]
[1749919914793,0.36443294,104530.0,104520.0,2.43884406]
[1749919914992,0.36443294,104530.0,104520.0,2.28729744]
[1749919915189,0.36443222,104530.0,104520.0,2.28729744]
[1749919915391,0.27597286,104530.0,104520.0,2.64809744]
[1749919915593,0.27597286,104530.0,104520.0,1.76633744]
[1749919915594,0.36442673,104530.0,104520.0,1.76633744]
[1749919915786,0.36442673,104530.0,104520.0,2.88773744]
[1749919915983,0.36442673,104530.0,104520.0,2.67848406]
[1749919916195,0.36442673,104530.0,104520.0,2.88773744]
[1749919917194,0.36442673,104530.0,104520.0,2.93293744]
[1749919917495,0.16,104530.0,104520.0,2.93293744]
[1749919917696,0.0376313,104530.0,104520.0,2.93293744]
[1749919917994,9.548e-05,104540.0,104530.0,0.1912479]
[1749919918193,0.33009548,104540.0,104530.0,1.30967712]